[Event "26th OIBM 2023"]
[Site "Gmund am Tegernsee"]
[Date "2023.11.05"]
[Round "9.34"]
[White "Chassard, Cedric"]
[Black "Tillmann, Markus"]
[Result "0-1"]
[ECO "C78"]
[WhiteElo "2326"]
[BlackElo "2085"]
[Annotator "RC"]
[PlyCount "62"]
[EventDate "2023.10.04"]
[EventType "swiss"]
[EventCountry "GER"]
[SourceTitle "playchess.com"]
[Source "ChessBase"]
[SourceQuality "1"]
[TimeControl "40/5400+30:1800+30"]

1. e4 {[%emt 0:00:05]} e5 {[%emt 0:00:12]} 2. Nf3 {[%emt 0:00:15]} Nc6 {[%emt 0:00:05]} 3. Bb5 {[%emt 0:00:09]} a6 {[%emt 0:00:05]} 4. Ba4 {[%emt 0:00:12]} Nf6 {[%emt 0:00:07]} 5. O-O {[%emt 0:00:14]} b5 {[%emt 0:00:13]} 6. Bb3 {[%emt 0:00:06]} Bc5 {[%emt 0:00:04]} 7. c3 {[%emt 0:04:34]} d6 {[%emt 0:02:12]} 8. a4 {[%emt 0:00:55]} Bb7 {[%emt 0:05:16]} 9. Qe2 {[%emt 0:09:45]} O-O {[%emt 0:02:59]} 10. d3 {[%emt 0:05:09]} b4 {[%emt 0:18:04]} 11. a5 {[%emt 0:01:58]} h6 {[%emt 0:03:18]} 12. Nbd2 {[%emt 0:04:07]} Re8 {[%emt 0:04:29]} 13. d4 {[%emt 0:07:52]} exd4 {[%emt 0:07:12]} 14. cxd4 {[%emt 0:01:24]} Nxd4 {[%emt 0:13:26]} 15. Nxd4 {[%emt 0:00:39]} Bxd4 {[%emt 0:00:15]} 16. Qc4 {[%emt 0:00:22]} Bc5 {[%emt 0:00:10]} 17. Qxf7+ {[%emt 0:00:25]} Kh8 {[%emt 0:00:22]} 18. Bc2 {[%emt 0:07:50]} Nxe4 {[%emt 0:06:38]} 19. Nb3 {[%emt 0:08:56]} Rf8 {[%emt 0:05:01]} 20. Qh5 {[%emt 0:13:29]} Rxf2 {[%emt 0:08:15]} 21. Rxf2 {[%emt 0:05:28]} Bxf2+ {[%emt 0:00:12]} 22. Kh1 {[%emt 0:00:18]} Qf6 {[%emt 0:04:30]} 23. Nd2 {[%emt 0:02:20]} Bc5 {[%emt 0:04:44]} 24. Qe2 {[%emt 0:03:30]} Rf8 {[%emt 0:03:04]} 25. Nf3 {[%emt 0:00:56]} Nf2+ {[%emt 0:00:11]} 26. Kg1 {[%emt 0:00:03]} Ng4+ {[%emt 0:01:28]} 27. Kh1 {[%emt 0:01:27]} Ne5 {[%emt 0:00:26]} 28. Bd2 {[%emt 0:01:40]} Nxf3 {[%emt 0:00:59]} 29. Rf1 {[%emt 0:00:01]} Qe5 {[%emt 0:01:24]} 30. Rxf3 {[%emt 0:00:31]} Rxf3 {[%emt 0:00:16]} 31. Qxf3 {[%emt 0:00:05]} Bxf3 {[%emt 0:00:08]} 0-1

[Event "26th OIBM 2023"]
[Site "Gmund am Tegernsee"]
[Date "2023.11.05"]
[Round "9.35"]
[White "Kulon, Klaudia"]
[Black "Casadio, Niccolo`"]
[Result "1-0"]
[ECO "E71"]
[WhiteElo "2319"]
[BlackElo "2082"]
[Annotator "RC"]
[PlyCount "123"]
[EventDate "2023.10.04"]
[EventType "swiss"]
[EventCountry "GER"]
[SourceTitle "playchess.com"]
[Source "ChessBase"]
[SourceQuality "1"]
[TimeControl "40/5400+30:1800+30"]

1. c4 {[%emt 0:00:03]} Nf6 {[%emt 0:00:06]} 2. Nc3 {[%emt 0:00:06]} g6 {[%emt 0:00:05]} 3. e4 {[%emt 0:00:06]} d6 {[%emt 0:00:07]} 4. d4 {[%emt 0:00:11]} Bg7 {[%emt 0:00:05]} 5. h3 {[%emt 0:00:18]} O-O {[%emt 0:01:50]} 6. Be3 {[%emt 0:00:04]} Nbd7 {[%emt 0:06:04]} 7. Qd2 {[%emt 0:00:39]} e5 {[%emt 0:00:28]} 8. d5 {[%emt 0:00:40]} Qe7 {[%emt 0:03:18]} 9. g4 {[%emt 0:00:36]} Nc5 {[%emt 0:00:34]} 10. f3 {[%emt 0:00:06]} a5 {[%emt 0:03:33]} 11. h4 {[%emt 0:04:10]} h5 {[%emt 0:00:48]} 12. g5 {[%emt 0:03:24]} Nh7 {[%emt 0:01:06]} 13. O-O-O {[%emt 0:02:12]} f5 {[%emt 0:06:26]} 14. gxf6 {[%emt 0:05:04]} Bxf6 {[%emt 0:05:06]} 15. Qg2 {[%emt 0:01:05]} Kg7 {[%emt 0:05:53]} 16. Nb5 {[%emt 0:04:23]} Bxh4 {[%emt 0:08:35]} 17. Nxc7 {[%emt 0:02:06]} Rb8 {[%emt 0:00:06]} 18. Nb5 {[%emt 0:02:19]} Bg5 {[%emt 0:01:18]} 19. Bxg5 {[%emt 0:02:30]} Qxg5+ {[%emt 0:00:02]} 20. Rd2 {[%emt 0:00:09]} Rf6 {[%emt 0:02:23]} 21. Qe2 {[%emt 0:14:08]} Bd7 {[%emt 0:05:21]} 22. Nc3 {[%emt 0:00:06]} Rbf8 {[%emt 0:08:38]} 23. Kc2 {[%emt 0:03:51]} Qf4 {[%emt 0:02:31]} 24. Qe1 {[%emt 0:01:15]} Qh6 {[%emt 0:09:24]} 25. Rg2 {[%emt 0:03:15]} Kh8 {[%emt 0:04:12]} 26. Be2 {[%emt 0:01:06]} Rf4 {[%emt 0:02:43]} 27. Rgh2 {[%emt 0:04:18]} b6 {[%emt 0:01:37]} 28. Qg3 {[%emt 0:02:05]} Nf6 {[%emt 0:03:53]} 29. Nh3 {[%emt 0:04:51]} Bxh3 {[%emt 0:00:09]} 30. Rxh3 {[%emt 0:00:07]} g5 {[%emt 0:03:27]} 31. Nb5 {[%emt 0:03:43]} g4 {[%emt 0:07:42]} 32. fxg4 {[%emt 0:01:35]} Ncxe4 {[%emt 0:00:09]} 33. Qe3 {[%emt 0:01:38]} Qg6 {[%emt 0:01:00]} 34. Bd3 {[%emt 0:02:19]} Qxg4 {[%emt 0:02:46]} 35. Rg1 {[%emt 0:12:10]} Rf2+ {[%emt 0:05:43]} 36. Qxf2 {[%emt 0:00:05]} Nxf2 {[%emt 0:00:04]} 37. Rxg4 {[%emt 0:00:04]} Nxh3 {[%emt 0:00:37]} 38. Rh4 {[%emt 0:00:42]} Nf4 {[%emt 0:00:01]} 39. Nxd6 {[%emt 0:01:03]} Nxd3 {[%emt 0:00:51]} 40. Kxd3 {[%emt 0:00:06]} Kg7 {[%emt 0:00:11]} 41. Ne4 {[%emt 0:35:13]} Ng4 {[%emt 0:10:53]} 42. Rxh5 {[%emt 0:00:00]} Rf3+ {[%emt 0:00:22]} 43. Kd2 {[%emt 0:00:00]} Rf4 {[%emt 0:00:07]} 44. Nd6 {[%emt 0:00:00]} e4 {[%emt 0:01:43]} 45. Rf5 {[%emt 0:00:00]} Rxf5 {[%emt 0:01:06]} 46. Nxf5+ {[%emt 0:00:00]} Kf6 {[%emt 0:00:06]} 47. Ne3 {[%emt 0:00:00]} Nh2 {[%emt 0:01:31]} 48. Kc3 {[%emt 0:00:00]} Nf3 {[%emt 0:00:14]} 49. a3 {[%emt 0:00:00]} Ke5 {[%emt 0:00:41]} 50. b4 {[%emt 0:00:00]} axb4+ {[%emt 0:03:02]} 51. axb4 {[%emt 0:00:00]} Kd6 {[%emt 0:00:16]} 52. Kb3 {[%emt 0:00:00]} Ke5 {[%emt 0:01:35]} 53. c5 {[%emt 0:00:00]} b5 {[%emt 0:10:47]} 54. c6 {[%emt 0:04:18]} Kd6 {[%emt 0:00:12]} 55. Kc3 {[%emt 0:00:04]} Ne5 {[%emt 0:00:28]} 56. Nf5+ {[%emt 0:03:24]} Kc7 {[%emt 0:00:09]} 57. Nd4 {[%emt 0:01:10]} Ng4 {[%emt 0:03:49]} 58. Nxb5+ {[%emt 0:00:16]} Kb6 {[%emt 0:00:29]} 59. c7 {[%emt 0:01:24]} Kb7 {[%emt 0:00:04]} 60. d6 {[%emt 0:00:04]} Nf6 {[%emt 0:02:26]} 61. Kd4 {[%emt 0:00:41]} Ne8 {[%emt 0:01:13]} 62. Kxe4 {[%emt 0:00:46]} 1-0

[Event "26th OIBM 2023"]
[Site "Gmund am Tegernsee"]
[Date "2023.11.05"]
[Round "9.36"]
[White "Lavrencic, Matic"]
[Black "Hanisch, Sebastian"]
[Result "1-0"]
[ECO "B40"]
[WhiteElo "2319"]
[BlackElo "2070"]
[Annotator "RC"]
[PlyCount "51"]
[EventDate "2023.10.04"]
[EventType "swiss"]
[EventCountry "GER"]
[SourceTitle "playchess.com"]
[Source "ChessBase"]
[SourceQuality "1"]
[TimeControl "40/5400+30:1800+30"]

1. e4 {[%emt 0:00:02]} c5 {[%emt 0:00:05]} 2. Nf3 {[%emt 0:00:14]} e6 {[%emt 0:00:04]} 3. b3 {[%emt 0:02:44]} Nc6 {[%emt 0:00:45]} 4. Bb2 {[%emt 0:00:40]} Nf6 {[%emt 0:00:56]} 5. e5 {[%emt 0:02:30]} Nd5 {[%emt 0:00:27]} 6. Nc3 {[%emt 0:03:44]} Nxc3 {[%emt 0:00:26]} 7. dxc3 {[%emt 0:00:52]} Be7 {[%emt 0:00:43]} 8. Bd3 {[%emt 0:04:00]} Qc7 {[%emt 0:01:11]} 9. Qe2 {[%emt 0:05:10]} b6 {[%emt 0:03:26]} 10. O-O-O {[%emt 0:01:21]} Bb7 {[%emt 0:00:39]} 11. Kb1 {[%emt 0:01:02]} O-O-O {[%emt 0:00:25]} 12. c4 {[%emt 0:01:58]} f5 {[%emt 0:03:23]} 13. exf6 {[%emt 0:02:17]} Bxf6 {[%emt 0:00:14]} 14. Be4 {[%emt 0:01:09]} h6 {[%emt 0:05:43]} 15. Rhe1 {[%emt 0:02:16]} Bxb2 {[%emt 0:06:05]} 16. Kxb2 {[%emt 0:00:26]} g5 {[%emt 0:02:21]} 17. h3 {[%emt 0:13:39]} Rhf8 {[%emt 0:01:31]} 18. Rd2 {[%emt 0:01:55]} Rf6 {[%emt 0:02:39]} 19. Red1 {[%emt 0:02:02]} Ne7 {[%emt 0:10:46]} 20. Bxb7+ {[%emt 0:02:24]} Kxb7 {[%emt 0:01:24]} 21. Rd6 {[%emt 0:04:10]} Nd5 {[%emt 0:07:49]} 22. R1xd5 {[%emt 0:00:14]} exd5 {[%emt 0:01:08]} 23. Rxf6 {[%emt 0:00:33]} dxc4 {[%emt 0:00:28]} 24. Qxc4 {[%emt 0:00:08]} d5 {[%emt 0:01:26]} 25. Qe2 {[%emt 0:00:10]} Qg7 {[%emt 0:01:07]} 26. Qe5 {[%emt 0:00:10]} 1-0

[Event "26th OIBM 2023"]
[Site "Gmund am Tegernsee"]
[Date "2023.11.05"]
[Round "9.37"]
[White "Butenandt, Svenja"]
[Black "Dobrosmyslov, Artem"]
[Result "1/2-1/2"]
[ECO "D20"]
[WhiteElo "2082"]
[BlackElo "2316"]
[Annotator "RC"]
[PlyCount "89"]
[EventDate "2023.10.04"]
[EventType "swiss"]
[EventCountry "GER"]
[SourceTitle "playchess.com"]
[Source "ChessBase"]
[SourceQuality "1"]
[TimeControl "40/5400+30:1800+30"]

1. d4 {[%emt 0:00:03]} d5 {[%emt 0:00:27]} 2. c4 {[%emt 0:00:07]} dxc4 {[%emt 0:00:24]} 3. e4 {[%emt 0:00:23]} b5 {[%emt 0:00:12]} 4. a4 {[%emt 0:00:22]} c6 {[%emt 0:00:19]} 5. axb5 {[%emt 0:00:24]} cxb5 {[%emt 0:00:11]} 6. Nc3 {[%emt 0:00:08]} Qb6 {[%emt 0:04:49]} 7. b3 {[%emt 0:23:31]} e6 {[%emt 0:02:02]} 8. bxc4 {[%emt 0:03:12]} Bb4 {[%emt 0:00:11]} 9. Bd2 {[%emt 0:11:07]} bxc4 {[%emt 0:00:10]} 10. Bxc4 {[%emt 0:00:24]} Ne7 {[%emt 0:00:19]} 11. Nf3 {[%emt 0:02:56]} Bb7 {[%emt 0:06:15]} 12. Qe2 {[%emt 0:06:35]} O-O {[%emt 0:22:07]} 13. O-O {[%emt 0:00:35]} a5 {[%emt 0:13:16]} 14. Na4 {[%emt 0:14:02]} Qc6 {[%emt 0:03:29]} 15. Bd3 {[%emt 0:09:50]} Ba6 {[%emt 0:09:59]} 16. Rfc1 {[%emt 0:02:30]} Bxd3 {[%emt 0:03:17]} 17. Qxd3 {[%emt 0:00:02]} Qa6 {[%emt 0:00:11]} 18. Qxa6 {[%emt 0:05:06]} Rxa6 {[%emt 0:06:20]} 19. Nc5 {[%emt 0:01:31]} Rb6 {[%emt 0:08:21]} 20. Bf4 {[%emt 0:10:33]} Rb5 {[%emt 0:03:17]} 21. Bd6 {[%emt 0:03:15]} Nbc6 {[%emt 0:00:56]} 22. Ne5 {[%emt 0:02:56]} Rd8 {[%emt 0:08:19]} 23. Bc7 {[%emt 0:01:07]} Rc8 {[%emt 0:02:40]} 24. Nxc6 {[%emt 0:00:46]} Nxc6 {[%emt 0:00:02]} 25. Na6 {[%emt 0:00:36]} Nxd4 {[%emt 0:00:11]} 26. Rd1 {[%emt 0:00:35]} Nb3 {[%emt 0:04:25]} 27. Rab1 {[%emt 0:00:17]} Nc5 {[%emt 0:00:05]} 28. Nxc5 {[%emt 0:00:44]} Rxc5 {[%emt 0:00:04]} 29. Bd6 {[%emt 0:00:11]} Rc4 {[%emt 0:00:05]} 30. Bxb4 {[%emt 0:00:16]} axb4 {[%emt 0:00:50]} 31. f3 {[%emt 0:00:06]} g5 {[%emt 0:00:14]} 32. Kf2 {[%emt 0:00:38]} Rc2+ {[%emt 0:01:00]} 33. Kg3 {[%emt 0:01:02]} R8c4 {[%emt 0:00:49]} 34. Rd8+ {[%emt 0:00:52]} Kg7 {[%emt 0:00:01]} 35. Rb8 {[%emt 0:00:05]} Re2 {[%emt 0:00:45]} 36. R8xb4 {[%emt 0:00:06]} Rcc2 {[%emt 0:00:02]} 37. Rg1 {[%emt 0:00:07]} Kg6 {[%emt 0:01:28]} 38. Rbb1 {[%emt 0:00:29]} h5 {[%emt 0:00:23]} 39. Rbe1 {[%emt 0:01:04]} h4+ {[%emt 0:00:52]} 40. Kh3 {[%emt 0:00:01]} Rf2 {[%emt 0:00:51]} 41. Ref1 {[%emt 0:30:47]} f5 {[%emt 0:04:33]} 42. Rxf2 {[%emt 0:00:00]} Rxf2 {[%emt 0:00:04]} 43. exf5+ {[%emt 0:00:00]} exf5 {[%emt 0:00:10]} 44. Ra1 {[%emt 0:00:00]} Kh5 {[%emt 0:03:57]} 45. Ra5 {[%emt 0:00:00]} 1/2-1/2

[Event "26th OIBM 2023"]
[Site "Gmund am Tegernsee"]
[Date "2023.11.05"]
[Round "9.38"]
[White "Jerie, Sven"]
[Black "Schuster, Karsten"]
[Result "0-1"]
[ECO "B15"]
[WhiteElo "2055"]
[BlackElo "2309"]
[Annotator "RC"]
[PlyCount "80"]
[EventDate "2023.10.04"]
[EventType "swiss"]
[EventCountry "GER"]
[SourceTitle "playchess.com"]
[Source "ChessBase"]
[SourceQuality "1"]
[TimeControl "40/5400+30:1800+30"]

1. e4 {[%emt 0:00:05]} c6 {[%emt 0:00:02]} 2. d4 {[%emt 0:00:11]} d5 {[%emt 0:00:05]} 3. Nc3 {[%emt 0:00:21]} dxe4 {[%emt 0:00:05]} 4. Nxe4 {[%emt 0:00:06]} Nf6 {[%emt 0:00:03]} 5. Nxf6+ {[%emt 0:00:48]} exf6 {[%emt 0:00:05]} 6. c3 {[%emt 0:02:43]} Bd6 {[%emt 0:00:05]} 7. Bd3 {[%emt 0:00:40]} O-O {[%emt 0:00:06]} 8. Qc2 {[%emt 0:00:41]} Re8+ {[%emt 0:00:05]} 9. Ne2 {[%emt 0:00:34]} h5 {[%emt 0:00:04]} 10. Be3 {[%emt 0:00:47]} Nd7 {[%emt 0:00:32]} 11. O-O-O {[%emt 0:04:06]} Nf8 {[%emt 0:00:22]} 12. Nf4 {[%emt 0:01:14]} Bxf4 {[%emt 0:00:19]} 13. Bxf4 {[%emt 0:02:03]} b5 {[%emt 0:00:06]} 14. h3 {[%emt 0:12:07]} Be6 {[%emt 0:00:19]} 15. Kb1 {[%emt 0:00:55]} a5 {[%emt 0:01:44]} 16. Rhg1 {[%emt 0:02:12]} a4 {[%emt 0:24:38]} 17. g4 {[%emt 0:03:04]} Qd5 {[%emt 0:09:23]} 18. c4 {[%emt 0:27:27]} Qf3 {[%emt 0:07:21]} 19. Be3 {[%emt 0:04:03]} Bxc4 {[%emt 0:02:48]} 20. Bxc4 {[%emt 0:02:55]} bxc4 {[%emt 0:00:05]} 21. Qxc4 {[%emt 0:01:03]} h4 {[%emt 0:05:32]} 22. Rc1 {[%emt 0:01:08]} Re6 {[%emt 0:00:45]} 23. Rc3 {[%emt 0:11:10]} Ng6 {[%emt 0:05:25]} 24. Ra3 {[%emt 0:06:41]} Nf4 {[%emt 0:06:09]} 25. Bc1 {[%emt 0:08:06]} Qxf2 {[%emt 0:15:25]} 26. Rf1 {[%emt 0:00:29]} Qe2 {[%emt 0:00:04]} 27. Rc3 {[%emt 0:02:59]} Qxc4 {[%emt 0:02:34]} 28. Rxc4 {[%emt 0:00:02]} Nxh3 {[%emt 0:00:22]} 29. Rh1 {[%emt 0:00:21]} Nf2 {[%emt 0:00:26]} 30. Rxh4 {[%emt 0:00:13]} g5 {[%emt 0:00:10]} 31. Rh5 {[%emt 0:03:18]} Kg7 {[%emt 0:01:01]} 32. Rc2 {[%emt 0:01:13]} Nxg4 {[%emt 0:02:36]} 33. Rg2 {[%emt 0:00:19]} Kg6 {[%emt 0:00:26]} 34. Rh3 {[%emt 0:00:28]} f5 {[%emt 0:00:16]} 35. Rc3 {[%emt 0:00:32]} f6 {[%emt 0:00:29]} 36. Rgc2 {[%emt 0:00:44]} f4 {[%emt 0:01:21]} 37. Rxc6 {[%emt 0:00:32]} Rxc6 {[%emt 0:00:07]} 38. Rxc6 {[%emt 0:00:01]} f3 {[%emt 0:00:44]} 39. Bd2 {[%emt 0:01:00]} f2 {[%emt 0:00:12]} 40. Rc1 {[%emt 0:00:12]} Nh2 {[%emt 0:00:04]} 0-1

[Event "26th OIBM 2023"]
[Site "Gmund am Tegernsee"]
[Date "2023.11.05"]
[Round "9.39"]
[White "Semprun Martinez, Fernando"]
[Black "Karsay, Pascal"]
[Result "0-1"]
[ECO "C84"]
[WhiteElo "2064"]
[BlackElo "2301"]
[Annotator "RC"]
[PlyCount "50"]
[EventDate "2023.10.04"]
[EventType "swiss"]
[EventCountry "GER"]
[SourceTitle "playchess.com"]
[Source "ChessBase"]
[SourceQuality "1"]
[TimeControl "40/5400+30:1800+30"]

1. e4 {[%emt 0:00:01]} e5 {[%emt 0:00:10]} 2. Nf3 {[%emt 0:00:02]} Nc6 {[%emt 0:00:10]} 3. Bb5 {[%emt 0:00:29]} a6 {[%emt 0:00:11]} 4. Ba4 {[%emt 0:00:01]} Nf6 {[%emt 0:00:10]} 5. O-O {[%emt 0:00:02]} b5 {[%emt 0:00:19]} 6. Bb3 {[%emt 0:00:01]} Bb7 {[%emt 0:00:21]} 7. d3 {[%emt 0:00:12]} Be7 {[%emt 0:00:14]} 8. Nc3 {[%emt 0:01:35]} O-O {[%emt 0:00:49]} 9. Nd5 {[%emt 0:00:54]} d6 {[%emt 0:04:41]} 10. Nxe7+ {[%emt 0:00:58]} Qxe7 {[%emt 0:00:25]} 11. c3 {[%emt 0:07:16]} Na5 {[%emt 0:03:57]} 12. Bc2 {[%emt 0:01:36]} c5 {[%emt 0:00:54]} 13. b4 {[%emt 0:05:16]} cxb4 {[%emt 0:05:59]} 14. cxb4 {[%emt 0:00:02]} Nc6 {[%emt 0:00:11]} 15. a3 {[%emt 0:02:17]} d5 {[%emt 0:02:17]} 16. exd5 {[%emt 0:01:33]} Nxd5 {[%emt 0:00:10]} 17. Re1 {[%emt 0:00:31]} Qd6 {[%emt 0:32:25]} 18. d4 {[%emt 0:19:08]} exd4 {[%emt 0:06:52]} 19. Ng5 {[%emt 0:06:00]} Nf6 {[%emt 0:01:49]} 20. Qd3 {[%emt 0:05:02]} Rfe8 {[%emt 0:02:39]} 21. Bb2 {[%emt 0:01:27]} h6 {[%emt 0:06:19]} 22. Ne4 {[%emt 0:03:33]} Rxe4 {[%emt 0:02:28]} 23. Rxe4 {[%emt 0:00:20]} Nxb4 {[%emt 0:00:10]} 24. Rxd4 {[%emt 0:02:31]} Nxd3 25. Rxd6 Nxb2 {[%emt 0:01:06]} 0-1

[Event "26th OIBM 2023"]
[Site "Gmund am Tegernsee"]
[Date "2023.11.05"]
[Round "9.40"]
[White "Dubessay, Bastien"]
[Black "Roemhild, Marcus"]
[Result "1-0"]
[ECO "E81"]
[WhiteElo "2286"]
[BlackElo "2050"]
[Annotator "RC"]
[PlyCount "53"]
[EventDate "2023.10.04"]
[EventType "swiss"]
[EventCountry "GER"]
[SourceTitle "playchess.com"]
[Source "ChessBase"]
[SourceQuality "1"]
[TimeControl "40/5400+30:1800+30"]

1. d4 {[%emt 0:00:16]} g6 {[%emt 0:00:27]} 2. c4 {[%emt 0:00:28]} Bg7 {[%emt 0:00:17]} 3. e4 {[%emt 0:02:51]} c5 {[%emt 0:02:06]} 4. d5 {[%emt 0:00:10]} d6 {[%emt 0:00:10]} 5. f3 {[%emt 0:01:33]} Nf6 {[%emt 0:01:53]} 6. Nc3 {[%emt 0:03:06]} O-O {[%emt 0:00:25]} 7. Bg5 {[%emt 0:00:06]} h6 {[%emt 0:01:36]} 8. Be3 {[%emt 0:02:42]} Kh7 {[%emt 0:05:31]} 9. Qd2 {[%emt 0:00:16]} a6 {[%emt 0:00:36]} 10. Nge2 {[%emt 0:02:49]} Bd7 {[%emt 0:03:16]} 11. a4 {[%emt 0:00:40]} b6 {[%emt 0:00:29]} 12. Ng3 {[%emt 0:03:18]} h5 {[%emt 0:03:17]} 13. Bd3 {[%emt 0:05:42]} Ra7 {[%emt 0:00:55]} 14. O-O {[%emt 0:03:58]} e6 {[%emt 0:07:08]} 15. Bg5 {[%emt 0:03:28]} Qe8 {[%emt 0:04:39]} 16. f4 {[%emt 0:12:13]} e5 {[%emt 0:04:04]} 17. f5 {[%emt 0:14:13]} Ng8 {[%emt 0:02:10]} 18. f6 {[%emt 0:00:39]} Bh6 {[%emt 0:01:30]} 19. h4 {[%emt 0:03:43]} Bg4 {[%emt 0:01:44]} 20. Nd1 {[%emt 0:06:24]} Qc8 {[%emt 0:06:47]} 21. Ne3 {[%emt 0:02:27]} Re8 {[%emt 0:04:37]} 22. Be2 {[%emt 0:01:44]} Bxe2 {[%emt 0:05:24]} 23. Qxe2 {[%emt 0:00:25]} Nd7 {[%emt 0:03:36]} 24. Nxh5 {[%emt 0:00:27]} gxh5 {[%emt 0:01:00]} 25. Qxh5 {[%emt 0:00:05]} Qd8 {[%emt 0:03:46]} 26. Qxf7+ {[%emt 0:01:23]} Kh8 {[%emt 0:00:54]} 27. Bxh6 {[%emt 0:28:54]} 1-0

[Event "26th OIBM 2023"]
[Site "Gmund am Tegernsee"]
[Date "2023.11.05"]
[Round "9.41"]
[White "Holgert, Michael"]
[Black "Maier, Alexander"]
[Result "1-0"]
[ECO "B06"]
[WhiteElo "2051"]
[BlackElo "2277"]
[Annotator "RC"]
[PlyCount "99"]
[EventDate "2023.10.04"]
[EventType "swiss"]
[EventCountry "GER"]
[SourceTitle "playchess.com"]
[Source "ChessBase"]
[SourceQuality "1"]
[TimeControl "40/5400+30:1800+30"]

1. d4 {[%emt 0:00:03]} g6 {[%emt 0:01:45]} 2. e4 {[%emt 0:01:20]} Bg7 {[%emt 0:00:10]} 3. Nc3 {[%emt 0:01:10]} d6 {[%emt 0:03:12]} 4. Nf3 {[%emt 0:01:37]} a6 {[%emt 0:02:13]} 5. a4 {[%emt 0:02:37]} Nd7 {[%emt 0:05:38]} 6. Bc4 {[%emt 0:04:58]} e6 {[%emt 0:00:59]} 7. Bg5 {[%emt 0:02:25]} Ne7 {[%emt 0:00:12]} 8. a5 {[%emt 0:01:48]} h6 {[%emt 0:03:57]} 9. Be3 {[%emt 0:01:23]} Nf6 {[%emt 0:06:14]} 10. Bb3 {[%emt 0:07:31]} O-O {[%emt 0:02:23]} 11. Qd2 {[%emt 0:05:34]} Kh7 {[%emt 0:09:09]} 12. h3 {[%emt 0:02:49]} b5 {[%emt 0:10:44]} 13. axb6 {[%emt 0:05:33]} cxb6 {[%emt 0:00:11]} 14. Nh2 {[%emt 0:01:16]} d5 {[%emt 0:22:11]} 15. e5 {[%emt 0:03:11]} Nfg8 {[%emt 0:04:07]} 16. f4 {[%emt 0:04:34]} Nc6 {[%emt 0:05:10]} 17. Nf3 {[%emt 0:04:09]} Na5 {[%emt 0:04:12]} 18. h4 {[%emt 0:16:53]} f5 {[%emt 0:00:37]} 19. h5 {[%emt 0:02:27]} Ne7 {[%emt 0:00:39]} 20. Bf2 {[%emt 0:04:09]} Qe8 {[%emt 0:00:57]} 21. Bh4 {[%emt 0:08:02]} gxh5 {[%emt 0:00:37]} 22. Bxe7 {[%emt 0:00:36]} Qxe7 {[%emt 0:00:01]} 23. Rxh5 {[%emt 0:00:27]} Kg8 {[%emt 0:03:45]} 24. Qf2 {[%emt 0:01:28]} Kf7 {[%emt 0:05:04]} 25. Nxd5 {[%emt 0:02:11]} exd5 {[%emt 0:00:50]} 26. Bxd5+ {[%emt 0:00:07]} Be6 {[%emt 0:00:14]} 27. Rxf5+ {[%emt 0:03:26]} Kg8 {[%emt 0:00:13]} 28. Rxf8+ {[%emt 0:01:01]} Rxf8 {[%emt 0:00:05]} 29. Bxe6+ {[%emt 0:00:45]} Qxe6 {[%emt 0:00:02]} 30. g3 {[%emt 0:01:18]} Rc8 {[%emt 0:00:54]} 31. c3 {[%emt 0:00:27]} Bf8 {[%emt 0:01:37]} 32. Nd2 {[%emt 0:01:11]} Qf5 {[%emt 0:00:42]} 33. Qe2 {[%emt 0:01:12]} Qg6 {[%emt 0:01:13]} 34. Kf2 {[%emt 0:01:05]} Rc7 {[%emt 0:03:02]} 35. Ne4 {[%emt 0:01:55]} Nc6 {[%emt 0:01:59]} 36. Rxa6 {[%emt 0:00:37]} Ne7 {[%emt 0:00:53]} 37. Nf6+ {[%emt 0:00:38]} Kf7 {[%emt 0:00:52]} 38. Rxb6 {[%emt 0:00:22]} Ra7 {[%emt 0:00:22]} 39. Qc4+ {[%emt 0:00:48]} Kg7 {[%emt 0:00:18]} 40. Qe2 {[%emt 0:01:38]} Kh8 {[%emt 0:00:37]} 41. Qe4 {[%emt 0:06:35]} Qf7 {[%emt 0:02:10]} 42. Rb8 {[%emt 0:01:02]} Ng6 {[%emt 0:02:53]} 43. Qxg6 {[%emt 0:02:51]} Qxg6 {[%emt 0:00:03]} 44. Rxf8+ {[%emt 0:00:07]} Kg7 {[%emt 0:00:08]} 45. Rg8+ {[%emt 0:00:10]} Kf7 {[%emt 0:00:02]} 46. Rxg6 {[%emt 0:00:25]} Kxg6 {[%emt 0:00:02]} 47. Ke3 {[%emt 0:01:05]} h5 {[%emt 0:01:26]} 48. d5 {[%emt 0:00:49]} Ra2 {[%emt 0:01:00]} 49. b4 {[%emt 0:03:41]} Rc2 {[%emt 0:00:41]} 50. Kd4 {[%emt 0:03:04]} 1-0

[Event "26th OIBM 2023"]
[Site "Gmund am Tegernsee"]
[Date "2023.11.05"]
[Round "9.42"]
[White "Fauth, Dietmar"]
[Black "Ohler, Julius"]
[Result "0-1"]
[ECO "B12"]
[WhiteElo "2048"]
[BlackElo "2273"]
[Annotator "RC"]
[PlyCount "52"]
[EventDate "2023.10.04"]
[EventType "swiss"]
[EventCountry "GER"]
[SourceTitle "playchess.com"]
[Source "ChessBase"]
[SourceQuality "1"]
[TimeControl "40/5400+30:1800+30"]

1. e4 {[%emt 0:00:04]} c6 {[%emt 0:00:06]} 2. d4 {[%emt 0:00:16]} d5 {[%emt 0:00:05]} 3. e5 {[%emt 0:00:04]} Bf5 {[%emt 0:00:48]} 4. Nf3 {[%emt 0:00:17]} e6 {[%emt 0:00:06]} 5. Be2 {[%emt 0:00:41]} Nd7 {[%emt 0:00:05]} 6. O-O {[%emt 0:01:29]} a5 {[%emt 0:00:26]} 7. a4 {[%emt 0:00:47]} f6 {[%emt 0:00:05]} 8. c4 {[%emt 0:01:54]} fxe5 {[%emt 0:01:08]} 9. dxe5 {[%emt 0:00:07]} Bc5 {[%emt 0:00:16]} 10. Nbd2 {[%emt 0:00:42]} Ne7 {[%emt 0:01:17]} 11. Nb3 {[%emt 0:00:48]} Ba7 {[%emt 0:00:05]} 12. Nbd4 {[%emt 0:03:55]} O-O {[%emt 0:08:35]} 13. Bg5 {[%emt 0:07:36]} h6 {[%emt 0:02:46]} 14. Bxe7 {[%emt 0:04:39]} Qxe7 {[%emt 0:01:36]} 15. Nxf5 {[%emt 0:00:12]} Rxf5 {[%emt 0:00:13]} 16. Bd3 {[%emt 0:00:42]} Rf7 {[%emt 0:03:42]} 17. cxd5 {[%emt 0:05:34]} exd5 {[%emt 0:04:16]} 18. Bg6 {[%emt 0:07:32]} Rf4 {[%emt 0:03:57]} 19. g3 {[%emt 0:09:02]} Rb4 {[%emt 0:04:38]} 20. Qe2 {[%emt 0:05:26]} Qe6 {[%emt 0:02:50]} 21. Bb1 {[%emt 0:03:47]} Re8 {[%emt 0:07:36]} 22. Re1 {[%emt 0:02:32]} Nc5 {[%emt 0:06:30]} 23. Qc2 {[%emt 0:13:03]} Ne4 {[%emt 0:03:44]} 24. Re2 {[%emt 0:00:09]} Rf8 {[%emt 0:06:16]} 25. Kg2 {[%emt 0:05:13]} Rxf3 {[%emt 0:01:04]} 26. Kxf3 {[%emt 0:00:23]} Ng5+ {[%emt 0:00:05]} 0-1